[Event "Late-Titled-Tuesday-Blitz-February-13-2024"]
[Site "Chess.com"]
[Date "2024.02.13"]
[Round "10"]
[White "Cosi43"]
[Black "NovakRatko"]
[Result "0-1"]
[WhiteElo "2567"]
[BlackElo "2336"]
[TimeControl "180+1"]
[EndTime "15:54:11 PST"]
[Termination "NovakRatko won by resignation"]

1. d4 {[%clk 0:01:32]} 1... d5 {[%clk 0:02:58.4]} 2. Nf3 {[%clk 0:01:32.2]} 2...
c5 {[%clk 0:02:58.8]} 3. e3 {[%clk 0:01:27.6]} 3... cxd4 {[%clk 0:02:58.7]} 4.
exd4 {[%clk 0:01:27.4]} 4... Nc6 {[%clk 0:02:59.1]} 5. h3 {[%clk 0:01:26.7]}
5... f6 {[%clk 0:02:59.1]} 6. Bb5 {[%clk 0:01:22.1]} 6... a6 {[%clk 0:02:56.7]}
7. Ba4 {[%clk 0:01:17]} 7... b5 {[%clk 0:02:53.9]} 8. Bb3 {[%clk 0:01:16.9]}
8... Bf5 {[%clk 0:02:54.3]} 9. O-O {[%clk 0:01:16]} 9... g5 {[%clk 0:02:49.7]}
10. Re1 {[%clk 0:01:14.1]} 10... Qd7 {[%clk 0:02:48.8]} 11. Nc3 {[%clk
0:01:07.9]} 11... Be6 {[%clk 0:02:32]} 12. Qe2 {[%clk 0:01:04.9]} 12... Bf7
{[%clk 0:02:30.8]} 13. Qe3 {[%clk 0:00:56.1]} 13... Na5 {[%clk 0:02:26.9]} 14.
Bd2 {[%clk 0:00:54.2]} 14... Nxb3 {[%clk 0:02:26.1]} 15. axb3 {[%clk 0:00:55.1]}
15... Qc6 {[%clk 0:02:19.4]} 16. Rac1 {[%clk 0:00:46.8]} 16... Nh6 {[%clk
0:02:12.6]} 17. Ne2 {[%clk 0:00:46.9]} 17... Nf5 {[%clk 0:02:11.6]} 18. Qd3
{[%clk 0:00:47]} 18... Bg6 {[%clk 0:02:10.8]} 19. Qc3 {[%clk 0:00:45.8]} 19...
Qd7 {[%clk 0:02:05.7]} 20. Qa5 {[%clk 0:00:44.2]} 20... h5 {[%clk 0:01:54.9]}
21. Nxg5 {[%clk 0:00:28.2]} 21... fxg5 {[%clk 0:01:51.6]} 22. Bxg5 {[%clk
0:00:29.1]} 22... Bh6 {[%clk 0:01:38.3]} 23. Bxh6 {[%clk 0:00:23.8]} 23... Nxh6
{[%clk 0:01:34.7]} 24. Nf4 {[%clk 0:00:24.7]} 24... Bf7 {[%clk 0:01:35.2]} 25.
Re5 {[%clk 0:00:21]} 25... Nf5 {[%clk 0:01:25.6]} 26. Rce1 {[%clk 0:00:20.7]}
26... O-O {[%clk 0:01:25.3]} 27. g4 {[%clk 0:00:13.9]} 27... hxg4 {[%clk
0:01:19.6]} 28. hxg4 {[%clk 0:00:14.8]} 28... Nxd4 {[%clk 0:01:19.6]} 29. Rxe7
{[%clk 0:00:14.9]} 29... Qxg4+ {[%clk 0:01:17.5]} 30. Ng2 {[%clk 0:00:14.8]}
30... Nf3+ {[%clk 0:01:17.4]} 31. Kf1 {[%clk 0:00:15.4]} 31... Nxe1 {[%clk
0:01:13.6]} 32. Qxe1 {[%clk 0:00:15.6]} 32... Rae8 {[%clk 0:01:10]} 33. Qe5
{[%clk 0:00:09.2]} 33... Rxe7 {[%clk 0:01:08.1]} 34. Qxe7 {[%clk 0:00:09.9]}
34... Re8 {[%clk 0:01:08.5]} 35. Qf6 {[%clk 0:00:08.9]} 35... Qd1+ {[%clk
0:00:58.6]} 0-1

[Event "Late-Titled-Tuesday-Blitz-February-13-2024"]
[Site "Chess.com"]
[Date "2024.02.13"]
[Round "10"]
[White "Abduzhaparov"]
[Black "IMRosen"]
[Result "0-1"]
[WhiteElo "2444"]
[BlackElo "2633"]
[TimeControl "180+1"]
[EndTime "15:54:14 PST"]
[Termination "IMRosen won by resignation"]

1. Nf3 {[%clk 0:02:57.6]} 1... d5 {[%clk 0:03:00.1]} 2. c4 {[%clk 0:02:58.5]}
2... e6 {[%clk 0:03:00.1]} 3. g3 {[%clk 0:02:57.7]} 3... Nf6 {[%clk 0:02:58.5]}
4. Bg2 {[%clk 0:02:58.6]} 4... dxc4 {[%clk 0:02:59.2]} 5. Qa4+ {[%clk
0:02:57.6]} 5... c6 {[%clk 0:02:59.4]} 6. Qxc4 {[%clk 0:02:56.5]} 6... b5 {[%clk
0:03:00.2]} 7. Qc2 {[%clk 0:02:57]} 7... Bb7 {[%clk 0:03:00.9]} 8. a4 {[%clk
0:02:55.9]} 8... Nbd7 {[%clk 0:03:00]} 9. O-O {[%clk 0:02:55.4]} 9... a6 {[%clk
0:02:50.3]} 10. d4 {[%clk 0:02:54.7]} 10... c5 {[%clk 0:02:47.6]} 11. Rd1 {[%clk
0:02:49.7]} 11... Rc8 {[%clk 0:02:38.1]} 12. axb5 {[%clk 0:02:42.4]} 12... axb5
{[%clk 0:02:37.7]} 13. Qb3 {[%clk 0:02:38.6]} 13... Qb6 {[%clk 0:02:33.6]} 14.
Nc3 {[%clk 0:02:35.6]} 14... b4 {[%clk 0:02:21]} 15. Na4 {[%clk 0:02:32.4]}
15... Qb5 {[%clk 0:02:21.3]} 16. dxc5 {[%clk 0:02:22.7]} 16... Nxc5 {[%clk
0:02:21.5]} 17. Nxc5 {[%clk 0:02:21.9]} 17... Bxc5 {[%clk 0:02:21.9]} 18. Qd3
{[%clk 0:02:06.1]} 18... Qb6 {[%clk 0:02:13.7]} 19. Be3 {[%clk 0:01:25.8]} 19...
Bxe3 {[%clk 0:02:08.8]} 20. Qxe3 {[%clk 0:01:26.7]} 20... Qxe3 {[%clk
0:02:07.6]} 21. fxe3 {[%clk 0:01:27.6]} 21... O-O {[%clk 0:01:56.8]} 22. Ra7
{[%clk 0:01:26.9]} 22... Bd5 {[%clk 0:01:54.4]} 23. Nd4 {[%clk 0:01:16.5]} 23...
g6 {[%clk 0:01:12.8]} 24. h3 {[%clk 0:00:52.9]} 24... Bxg2 {[%clk 0:01:07.9]}
25. Kxg2 {[%clk 0:00:53.8]} 25... e5 {[%clk 0:01:06]} 26. Nf3 {[%clk 0:00:54.4]}
26... Rc2 {[%clk 0:00:43.4]} 27. Rd2 {[%clk 0:00:46.3]} 27... b3 {[%clk
0:00:34.1]} 28. Rb7 {[%clk 0:00:37.5]} 28... e4 {[%clk 0:00:29.8]} 29. Rxc2
{[%clk 0:00:19.3]} 29... bxc2 {[%clk 0:00:30.2]} 30. Rc7 {[%clk 0:00:20.2]}
30... exf3+ {[%clk 0:00:30.3]} 31. exf3 {[%clk 0:00:20.2]} 31... Nd5 {[%clk
0:00:28.5]} 0-1

[Event "Late-Titled-Tuesday-Blitz-February-13-2024"]
[Site "Chess.com"]
[Date "2024.02.13"]
[Round "10"]
[White "DanylaBagrov"]
[Black "Flaccidmoves"]
[Result "0-1"]
[WhiteElo "2544"]
[BlackElo "2445"]
[TimeControl "180+1"]
[EndTime "15:54:19 PST"]
[Termination "Flaccidmoves won by resignation"]

1. f4 {[%clk 0:03:00.9]} 1... Nh6 {[%clk 0:02:58.1]} 2. Nf3 {[%clk 0:02:59.6]}
2... d5 {[%clk 0:02:58.1]} 3. g3 {[%clk 0:02:58.8]} 3... g6 {[%clk 0:02:57.5]}
4. Bg2 {[%clk 0:02:59]} 4... Bg7 {[%clk 0:02:57.9]} 5. d3 {[%clk 0:02:57.9]}
5... d4 {[%clk 0:02:43.8]} 6. O-O {[%clk 0:02:51.5]} 6... O-O {[%clk 0:02:39.8]}
7. c3 {[%clk 0:02:49.5]} 7... c5 {[%clk 0:02:39.2]} 8. Qc2 {[%clk 0:02:15.8]}
8... Nc6 {[%clk 0:02:38.2]} 9. Na3 {[%clk 0:02:10.2]} 9... Nf5 {[%clk
0:02:28.8]} 10. Nc4 {[%clk 0:02:00.4]} 10... Be6 {[%clk 0:02:23.4]} 11. Nce5
{[%clk 0:01:53.8]} 11... Nxe5 {[%clk 0:02:19.4]} 12. Nxe5 {[%clk 0:01:52.5]}
12... Bd5 {[%clk 0:02:18.9]} 13. c4 {[%clk 0:01:49.1]} 13... Bxg2 {[%clk
0:02:18.1]} 14. Kxg2 {[%clk 0:01:50]} 14... f6 {[%clk 0:02:10.8]} 15. Nf3 {[%clk
0:01:43.4]} 15... e5 {[%clk 0:02:10]} 16. fxe5 {[%clk 0:01:29.5]} 16... fxe5
{[%clk 0:02:09.7]} 17. Ng5 {[%clk 0:01:26.3]} 17... Qd7 {[%clk 0:02:06.9]} 18.
Ne4 {[%clk 0:01:11.8]} 18... Qc6 {[%clk 0:02:00]} 19. Bd2 {[%clk 0:00:59.5]}
19... Nd6 {[%clk 0:01:53.4]} 20. Kg1 {[%clk 0:00:57.9]} 20... Nxe4 {[%clk
0:01:52.4]} 21. dxe4 {[%clk 0:00:58.8]} 21... Qe6 {[%clk 0:01:50.4]} 22. Qd3
{[%clk 0:00:45.4]} 22... Qh3 {[%clk 0:01:47.6]} 23. Qb3 {[%clk 0:00:39.8]} 23...
b6 {[%clk 0:01:47]} 24. Qa4 {[%clk 0:00:38.5]} 24... Qg4 {[%clk 0:01:26.5]} 25.
Qc6 {[%clk 0:00:19.1]} 25... Qxe2 {[%clk 0:01:19.8]} 26. Bg5 {[%clk 0:00:19.3]}
26... Rae8 {[%clk 0:01:01.5]} 27. Qd5+ {[%clk 0:00:18.9]} 27... Kh8 {[%clk
0:01:01.2]} 28. Rf7 {[%clk 0:00:12.4]} 28... Rxf7 {[%clk 0:00:57.4]} 29. Qxf7
{[%clk 0:00:13.3]} 29... Rf8 {[%clk 0:00:57.5]} 30. Qd5 {[%clk 0:00:09.4]} 30...
Qf2+ {[%clk 0:00:49.2]} 31. Kh1 {[%clk 0:00:09.9]} 31... Qxb2 {[%clk 0:00:47.7]}
32. Rd1 {[%clk 0:00:07.7]} 32... Qe2 {[%clk 0:00:46.1]} 33. Rc1 {[%clk
0:00:04.4]} 33... Rf1+ {[%clk 0:00:45.3]} 0-1

[Event "Late-Titled-Tuesday-Blitz-February-13-2024"]
[Site "Chess.com"]
[Date "2024.02.13"]
[Round "10"]
[White "BogdanDeac"]
[Black "LyonBeast"]
[Result "0-1"]
[WhiteElo "3036"]
[BlackElo "3187"]
[TimeControl "180+1"]
[EndTime "15:54:34 PST"]
[Termination "LyonBeast won on time"]

1. d4 {[%clk 0:03:00.9]} 1... Nf6 {[%clk 0:02:57.7]} 2. Nf3 {[%clk 0:03:00.6]}
2... g6 {[%clk 0:02:57.5]} 3. e3 {[%clk 0:02:37.2]} 3... Bg7 {[%clk 0:02:55.6]}
4. Be2 {[%clk 0:02:38.1]} 4... O-O {[%clk 0:02:55.6]} 5. O-O {[%clk 0:02:38.8]}
5... b6 {[%clk 0:02:47.6]} 6. c4 {[%clk 0:02:32.3]} 6... Bb7 {[%clk 0:02:48.3]}
7. Nc3 {[%clk 0:02:32.9]} 7... e6 {[%clk 0:02:48.9]} 8. b4 {[%clk 0:02:27.2]}
8... d6 {[%clk 0:02:48.2]} 9. Bb2 {[%clk 0:02:25]} 9... Nbd7 {[%clk 0:02:47.7]}
10. Qc2 {[%clk 0:02:25.2]} 10... c5 {[%clk 0:02:46.7]} 11. dxc5 {[%clk
0:02:02.1]} 11... dxc5 {[%clk 0:02:45.9]} 12. b5 {[%clk 0:01:59.7]} 12... Qe7
{[%clk 0:02:45.9]} 13. h3 {[%clk 0:01:51.9]} 13... Rad8 {[%clk 0:02:41.2]} 14.
a4 {[%clk 0:01:51.4]} 14... Ne8 {[%clk 0:02:28.6]} 15. a5 {[%clk 0:01:26.8]}
15... Nd6 {[%clk 0:02:28.7]} 16. axb6 {[%clk 0:01:22.6]} 16... axb6 {[%clk
0:02:29.6]} 17. Na4 {[%clk 0:01:22.4]} 17... e5 {[%clk 0:02:12.4]} 18. Rfd1
{[%clk 0:01:17.9]} 18... e4 {[%clk 0:01:55.2]} 19. Ne1 {[%clk 0:01:04.6]} 19...
f5 {[%clk 0:01:45]} 20. Rd2 {[%clk 0:00:50.4]} 20... Bxb2 {[%clk 0:01:43.9]} 21.
Qxb2 {[%clk 0:00:49.1]} 21... Nc8 {[%clk 0:01:31.9]} 22. Rad1 {[%clk 0:00:46.6]}
22... Nf6 {[%clk 0:01:30.8]} 23. g3 {[%clk 0:00:38.9]} 23... Kf7 {[%clk
0:01:26.2]} 24. Ng2 {[%clk 0:00:34.2]} 24... g5 {[%clk 0:01:26.6]} 25. h4 {[%clk
0:00:23.5]} 25... h6 {[%clk 0:01:26.9]} 26. Rxd8 {[%clk 0:00:22.6]} 26... Rxd8
{[%clk 0:01:26.9]} 27. Rxd8 {[%clk 0:00:23.2]} 27... Qxd8 {[%clk 0:01:27.8]} 28.
Qe5 {[%clk 0:00:23.4]} 28... Ne7 {[%clk 0:01:27.6]} 29. hxg5 {[%clk 0:00:18.5]}
29... hxg5 {[%clk 0:01:28.5]} 30. Ne1 {[%clk 0:00:12.6]} 30... Bc8 {[%clk
0:01:21.6]} 31. Bf1 {[%clk 0:00:03.8]} 31... Ng6 {[%clk 0:00:53]} 32. Qb8 {[%clk
0:00:03.9]} 32... Ng4 {[%clk 0:00:39.3]} 33. Be2 {[%clk 0:00:02.5]} 33... N6e5
{[%clk 0:00:34.4]} 34. Bxg4 {[%clk 0:00:01.5]} 34... Nxg4 {[%clk 0:00:35.3]} 0-1

[Event "Late-Titled-Tuesday-Blitz-February-13-2024"]
[Site "Chess.com"]
[Date "2024.02.13"]
[Round "10"]
[White "Ready4abattle"]
[Black "tarno17"]
[Result "1-0"]
[WhiteElo "2233"]
[BlackElo "2113"]
[TimeControl "180+1"]
[EndTime "15:54:39 PST"]
[Termination "Ready4abattle won by checkmate"]

1. e4 {[%clk 0:03:00.9]} 1... c5 {[%clk 0:02:59]} 2. Nf3 {[%clk 0:02:59.2]} 2...
e6 {[%clk 0:02:59.7]} 3. d4 {[%clk 0:02:59.5]} 3... cxd4 {[%clk 0:03:00.6]} 4.
Nxd4 {[%clk 0:02:59.7]} 4... a6 {[%clk 0:03:01.4]} 5. Nc3 {[%clk 0:02:58.5]}
5... Qc7 {[%clk 0:03:02.1]} 6. a3 {[%clk 0:02:57.6]} 6... b5 {[%clk 0:03:02.7]}
7. f4 {[%clk 0:02:57.7]} 7... Bb7 {[%clk 0:03:02.6]} 8. Bd3 {[%clk 0:02:52.1]}
8... Nc6 {[%clk 0:02:54.6]} 9. Nxc6 {[%clk 0:02:50.6]} 9... dxc6 {[%clk
0:02:53.4]} 10. Qf3 {[%clk 0:02:42]} 10... c5 {[%clk 0:02:51.7]} 11. Bd2 {[%clk
0:02:35.5]} 11... Nf6 {[%clk 0:02:44.8]} 12. O-O-O {[%clk 0:01:57.3]} 12... b4
{[%clk 0:02:17.2]} 13. axb4 {[%clk 0:01:55.9]} 13... cxb4 {[%clk 0:02:16.9]} 14.
Ne2 {[%clk 0:01:51.1]} 14... b3 {[%clk 0:01:56.7]} 15. c4 {[%clk 0:01:39]} 15...
Rc8 {[%clk 0:01:39]} 16. Bc3 {[%clk 0:01:35.7]} 16... a5 {[%clk 0:01:23.9]} 17.
g4 {[%clk 0:01:35]} 17... a4 {[%clk 0:01:16.2]} 18. g5 {[%clk 0:01:31.5]} 18...
Nd7 {[%clk 0:01:15.5]} 19. Kd2 {[%clk 0:01:17.5]} 19... Nb6 {[%clk 0:01:12.5]}
20. f5 {[%clk 0:00:57.5]} 20... e5 {[%clk 0:00:56.1]} 21. g6 {[%clk 0:00:53.3]}
21... hxg6 {[%clk 0:00:45.7]} 22. fxg6 {[%clk 0:00:52.8]} 22... f6 {[%clk
0:00:44.8]} 23. Qf5 {[%clk 0:00:48]} 23... Nxc4+ {[%clk 0:00:41.7]} 24. Ke1
{[%clk 0:00:43.1]} 24... Nd6 {[%clk 0:00:28.5]} 25. Qg4 {[%clk 0:00:32.2]} 25...
Be7 {[%clk 0:00:22.9]} 26. Qe6 {[%clk 0:00:25.4]} 26... Qd7 {[%clk 0:00:20.6]}
27. Bb5 {[%clk 0:00:14.9]} 27... Qxb5 {[%clk 0:00:17.2]} 28. Rxd6 {[%clk
0:00:15.5]} 28... Bc6 {[%clk 0:00:01.8]} 29. Qf7# {[%clk 0:00:14.7]} 1-0

[Event "Late-Titled-Tuesday-Blitz-February-13-2024"]
[Site "Chess.com"]
[Date "2024.02.13"]
[Round "10"]
[White "ValeriyGrinev"]
[Black "Mikhail_Golubev"]
[Result "1-0"]
[WhiteElo "2536"]
[BlackElo "2675"]
[TimeControl "180+1"]
[EndTime "15:54:40 PST"]
[Termination "ValeriyGrinev won by resignation"]

1. d4 {[%clk 0:03:00.9]} 1... Nf6 {[%clk 0:02:59.5]} 2. c4 {[%clk 0:03:01.6]}
2... g6 {[%clk 0:02:59.5]} 3. Nc3 {[%clk 0:03:02.3]} 3... Bg7 {[%clk 0:03:00.1]}
4. e4 {[%clk 0:03:02.9]} 4... d6 {[%clk 0:03:00.3]} 5. Nf3 {[%clk 0:03:03.5]}
5... O-O {[%clk 0:03:00.6]} 6. Be2 {[%clk 0:03:04.3]} 6... e5 {[%clk 0:03:00.9]}
7. O-O {[%clk 0:03:04.9]} 7... Nc6 {[%clk 0:03:00.3]} 8. d5 {[%clk 0:03:05.4]}
8... Ne7 {[%clk 0:03:00]} 9. b4 {[%clk 0:03:06.1]} 9... Ne8 {[%clk 0:02:59.4]}
10. c5 {[%clk 0:03:03]} 10... f5 {[%clk 0:02:59.4]} 11. a4 {[%clk 0:03:01.8]}
11... Nf6 {[%clk 0:02:58.3]} 12. Nd2 {[%clk 0:03:02.2]} 12... f4 {[%clk
0:02:50.3]} 13. Nc4 {[%clk 0:02:59.4]} 13... g5 {[%clk 0:02:49.9]} 14. Nb5
{[%clk 0:02:57.9]} 14... a6 {[%clk 0:02:28.1]} 15. Nxc7 {[%clk 0:02:55.4]} 15...
Qxc7 {[%clk 0:02:02.7]} 16. cxd6 {[%clk 0:02:55.1]} 16... Qd8 {[%clk 0:02:03.3]}
17. dxe7 {[%clk 0:02:54.8]} 17... Qxe7 {[%clk 0:02:04.2]} 18. d6 {[%clk
0:02:51.5]} 18... Qd8 {[%clk 0:01:59]} 19. Nxe5 {[%clk 0:02:47.7]} 19... Be6
{[%clk 0:01:53.4]} 20. Bb2 {[%clk 0:01:50.4]} 20... Nxe4 {[%clk 0:01:52.9]} 21.
Bg4 {[%clk 0:01:41.3]} 21... Bxg4 {[%clk 0:01:28]} 22. Qd5+ {[%clk 0:01:40.9]}
22... Kh8 {[%clk 0:01:26.1]} 23. Qxe4 {[%clk 0:01:39.4]} 23... Qxd6 {[%clk
0:01:22.4]} 24. Nc4 {[%clk 0:01:24.6]} 24... Qg6 {[%clk 0:01:11.4]} 25. Bxg7+
{[%clk 0:01:17.4]} 25... Qxg7 {[%clk 0:01:11.5]} 26. Nd6 {[%clk 0:01:09.3]}
26... Rad8 {[%clk 0:01:01.9]} 27. Nxb7 {[%clk 0:00:54.9]} 27... Rd4 {[%clk
0:00:49]} 28. Qc6 {[%clk 0:00:55.5]} 28... Rxb4 {[%clk 0:00:42.5]} 29. Nc5
{[%clk 0:00:54]} 29... Rc8 {[%clk 0:00:34.6]} 30. Qd5 {[%clk 0:00:35.2]} 30...
Rd4 {[%clk 0:00:33.2]} 31. Qb7 {[%clk 0:00:19.9]} 31... Rxc5 {[%clk 0:00:31.6]}
32. Qxa6 {[%clk 0:00:20.1]} 32... Rc8 {[%clk 0:00:29.6]} 33. Rac1 {[%clk
0:00:20.3]} 33... Rf8 {[%clk 0:00:28.2]} 34. Qb6 {[%clk 0:00:19]} 34... Rdd8
{[%clk 0:00:26.7]} 35. Rc7 {[%clk 0:00:19.3]} 35... Rf7 {[%clk 0:00:23.3]} 36.
Rxf7 {[%clk 0:00:18.9]} 36... Qxf7 {[%clk 0:00:22.3]} 37. Qxd8+ {[%clk
0:00:19.3]} 37... Kg7 {[%clk 0:00:22.1]} 38. Qxg5+ {[%clk 0:00:19.8]} 1-0

[Event "Late-Titled-Tuesday-Blitz-February-13-2024"]
[Site "Chess.com"]
[Date "2024.02.13"]
[Round "10"]
[White "YellowJacek"]
[Black "LUISMIGUELOV"]
[Result "1/2-1/2"]
[WhiteElo "2357"]
[BlackElo "2185"]
[TimeControl "180+1"]
[EndTime "15:54:49 PST"]
[Termination "Game drawn by stalemate"]

1. e4 {[%clk 0:02:57.2]} 1... e5 {[%clk 0:02:58.7]} 2. Nf3 {[%clk 0:02:55.7]}
2... Nc6 {[%clk 0:02:59.1]} 3. Bb5 {[%clk 0:02:55.6]} 3... a6 {[%clk 0:02:57.5]}
4. Ba4 {[%clk 0:02:55.7]} 4... Nf6 {[%clk 0:02:57.2]} 5. O-O {[%clk 0:02:55.6]}
5... b5 {[%clk 0:02:55]} 6. Bb3 {[%clk 0:02:55.5]} 6... Bc5 {[%clk 0:02:55.5]}
7. c3 {[%clk 0:02:54.8]} 7... d6 {[%clk 0:02:54.4]} 8. d4 {[%clk 0:02:54.7]}
8... exd4 {[%clk 0:02:53]} 9. cxd4 {[%clk 0:02:54.2]} 9... Bb6 {[%clk
0:02:53.2]} 10. h3 {[%clk 0:02:52.1]} 10... O-O {[%clk 0:02:52.5]} 11. Be3
{[%clk 0:02:49.3]} 11... Bb7 {[%clk 0:02:47.6]} 12. d5 {[%clk 0:02:38.1]} 12...
Bxe3 {[%clk 0:02:43.4]} 13. dxc6 {[%clk 0:02:38.1]} 13... Bxf2+ {[%clk
0:02:39.5]} 14. Rxf2 {[%clk 0:02:38.5]} 14... Bxc6 {[%clk 0:02:39.8]} 15. e5
{[%clk 0:02:34.8]} 15... Ne4 {[%clk 0:02:34]} 16. Rf1 {[%clk 0:02:26.1]} 16...
Qe7 {[%clk 0:02:23.5]} 17. exd6 {[%clk 0:02:23.9]} 17... cxd6 {[%clk 0:02:23.2]}
18. Nbd2 {[%clk 0:02:13]} 18... d5 {[%clk 0:02:21.8]} 19. Nxe4 {[%clk
0:02:03.8]} 19... dxe4 {[%clk 0:02:20.8]} 20. Nd4 {[%clk 0:02:03]} 20... Qc5
{[%clk 0:02:16.9]} 21. Rc1 {[%clk 0:02:01.7]} 21... Qa7 {[%clk 0:02:07.5]} 22.
Rxc6 {[%clk 0:01:54.7]} 22... Rad8 {[%clk 0:02:07.9]} 23. Kh1 {[%clk 0:01:40]}
23... Rxd4 {[%clk 0:02:07.3]} 24. Qh5 {[%clk 0:01:39.3]} 24... g6 {[%clk
0:02:00.1]} 25. Qe5 {[%clk 0:01:24.2]} 25... Qd7 {[%clk 0:01:53.9]} 26. Rc7
{[%clk 0:01:21]} 26... Qd6 {[%clk 0:01:46.2]} 27. Qxd6 {[%clk 0:01:18.9]} 27...
Rxd6 {[%clk 0:01:46]} 28. Rfxf7 {[%clk 0:01:16.1]} 28... Rxf7 {[%clk 0:01:45.6]}
29. Rxf7 {[%clk 0:01:16.3]} 29... Kh8 {[%clk 0:01:41.6]} 30. Re7 {[%clk
0:01:15.8]} 30... Rd4 {[%clk 0:01:35.5]} 31. g4 {[%clk 0:01:15.8]} 31... a5
{[%clk 0:01:34.9]} 32. g5 {[%clk 0:01:16.2]} 32... h6 {[%clk 0:01:22]} 33. gxh6
{[%clk 0:01:12]} 33... a4 {[%clk 0:01:22.4]} 34. Be6 {[%clk 0:01:10.1]} 34... e3
{[%clk 0:01:21.7]} 35. Bg4 {[%clk 0:01:06.8]} 35... Rd2 {[%clk 0:01:14.1]} 36.
b3 {[%clk 0:01:05.1]} 36... axb3 {[%clk 0:01:12.7]} 37. axb3 {[%clk 0:01:06]}
37... Rd3 {[%clk 0:01:11.7]} 38. Kg2 {[%clk 0:01:05.3]} 38... Rxb3 {[%clk
0:01:11.4]} 39. Kf3 {[%clk 0:01:05.4]} 39... b4 {[%clk 0:01:00.1]} 40. h4 {[%clk
0:01:05.5]} 40... Rc3 {[%clk 0:00:51.8]} 41. Rxe3 {[%clk 0:01:03.3]} 41... Rxe3+
{[%clk 0:00:50.8]} 42. Kxe3 {[%clk 0:01:03.7]} 42... Kh7 {[%clk 0:00:49.1]} 43.
Kf4 {[%clk 0:01:01.1]} 43... Kxh6 {[%clk 0:00:47.9]} 44. Be6 {[%clk 0:01:00.8]}
44... Kh5 {[%clk 0:00:45.9]} 45. Kg3 {[%clk 0:01:00.8]} 45... g5 {[%clk
0:00:39.2]} 46. Bf7+ {[%clk 0:00:59.8]} 46... Kh6 {[%clk 0:00:39]} 47. h5 {[%clk
0:01:00.3]} 47... b3 {[%clk 0:00:32.2]} 48. Kg4 {[%clk 0:00:58.5]} 48... b2
{[%clk 0:00:30.4]} 49. Bg6 {[%clk 0:00:58.2]} 49... Kg7 {[%clk 0:00:26.5]} 50.
Bb1 {[%clk 0:00:59.1]} 50... Kh6 {[%clk 0:00:26.2]} 51. Bc2 {[%clk 0:00:58.4]}
51... Kg7 {[%clk 0:00:24.6]} 52. Kxg5 {[%clk 0:00:51.7]} 52... Kh8 {[%clk
0:00:24.6]} 53. Bb1 {[%clk 0:00:52.3]} 53... Kg7 {[%clk 0:00:24.6]} 54. h6+
{[%clk 0:00:51.9]} 54... Kh8 {[%clk 0:00:24.4]} 55. Kg6 {[%clk 0:00:52.4]} 55...
Kg8 {[%clk 0:00:23.9]} 56. Ba2+ {[%clk 0:00:52.1]} 56... Kh8 {[%clk 0:00:23.7]}
57. h7 {[%clk 0:00:52.5]} 57... b1=Q+ {[%clk 0:00:22.5]} 58. Bxb1 {[%clk
0:00:53.4]} 1/2-1/2

[Event "Late-Titled-Tuesday-Blitz-February-13-2024"]
[Site "Chess.com"]
[Date "2024.02.13"]
[Round "10"]
[White "Polish_fighter3000"]
[Black "Szparu"]
[Result "1-0"]
[WhiteElo "3062"]
[BlackElo "2803"]
[TimeControl "180+1"]
[EndTime "15:54:51 PST"]
[Termination "Polish_fighter3000 won by resignation"]

1. Nf3 {[%clk 0:02:23.8]} 1... d5 {[%clk 0:02:59.8]} 2. c4 {[%clk 0:02:23.9]}
2... c6 {[%clk 0:02:59.2]} 3. g3 {[%clk 0:02:24]} 3... Nf6 {[%clk 0:02:59.2]} 4.
Bg2 {[%clk 0:02:24.1]} 4... dxc4 {[%clk 0:02:43.7]} 5. O-O {[%clk 0:02:23.9]}
5... Nbd7 {[%clk 0:02:39.5]} 6. Na3 {[%clk 0:02:11.7]} 6... Nb6 {[%clk 0:02:39]}
7. Qc2 {[%clk 0:02:10.5]} 7... g6 {[%clk 0:02:30.1]} 8. Nxc4 {[%clk 0:02:07.8]}
8... Nxc4 {[%clk 0:02:27.8]} 9. Qxc4 {[%clk 0:02:08.7]} 9... Bg7 {[%clk
0:02:27.9]} 10. b3 {[%clk 0:01:45.2]} 10... Be6 {[%clk 0:02:18.8]} 11. Qc2
{[%clk 0:01:43.7]} 11... O-O {[%clk 0:02:13.6]} 12. Bb2 {[%clk 0:01:43.7]} 12...
Rc8 {[%clk 0:02:08]} 13. Ne5 {[%clk 0:01:32.3]} 13... Qc7 {[%clk 0:01:52.8]} 14.
Rac1 {[%clk 0:01:29.4]} 14... Rfd8 {[%clk 0:01:51]} 15. d4 {[%clk 0:01:27.6]}
15... Nd7 {[%clk 0:01:36.4]} 16. Nd3 {[%clk 0:01:22.9]} 16... Nf8 {[%clk
0:01:26.8]} 17. e3 {[%clk 0:01:15]} 17... h5 {[%clk 0:01:09.9]} 18. Nc5 {[%clk
0:00:52]} 18... h4 {[%clk 0:01:07.4]} 19. Nxe6 {[%clk 0:00:48.8]} 19... Nxe6
{[%clk 0:01:07.6]} 20. Bh3 {[%clk 0:00:41.4]} 20... Qd6 {[%clk 0:01:02.6]} 21.
Qc4 {[%clk 0:00:40]} 21... hxg3 {[%clk 0:01:01.8]} 22. hxg3 {[%clk 0:00:34]}
22... f5 {[%clk 0:00:44.6]} 23. Bg2 {[%clk 0:00:21.4]} 23... Kh7 {[%clk
0:00:38.3]} 24. Qa4 {[%clk 0:00:14]} 24... a6 {[%clk 0:00:35.2]} 25. Ba3 {[%clk
0:00:14]} 25... Qd7 {[%clk 0:00:35.2]} 26. d5 {[%clk 0:00:14.3]} 26... Ng5
{[%clk 0:00:21.2]} 27. dxc6 {[%clk 0:00:14.3]} 27... bxc6 {[%clk 0:00:22.1]} 28.
Bxc6 {[%clk 0:00:13.8]} 28... Qd2 {[%clk 0:00:19.1]} 29. Bxe7 {[%clk 0:00:12.8]}
29... Nf3+ {[%clk 0:00:10.8]} 30. Bxf3 {[%clk 0:00:10.4]} 30... Rxc1 {[%clk
0:00:11.7]} 31. Qh4+ {[%clk 0:00:10.5]} 31... Kg8 {[%clk 0:00:07.2]} 32. Bxd8
{[%clk 0:00:10.1]} 32... Rxf1+ {[%clk 0:00:07.3]} 33. Kxf1 {[%clk 0:00:11]} 1-0